Cogmind - Beta 17.1 @@@ ROGUE MODE // 2026.08.25 @ 16:34:20 Player: obl-vn Result: Self-destructed Performance ------------- Evolutions (1) 500 Regions Visited (2) 400 Robots Destroyed (24) 120 Value Destroyed (588) 588 Prototype IDs (2) 40 Alien Tech Used (0) 0 Bonus (8000) 8000 TOTAL SCORE: 9648 Bonus ------- Prayed to X0-1V1 5000 Major X0-1V1 Interference 3000 Cogmind --------- Core Integrity 204/250 Matter 160/300 Energy 1065/1065 System Corruption 10% Temperature Cool (0) Movement Treading (160) Location -9/Materials Parts ------- > --- POWER (1) -------- Reinforced Ion Engine (fused) > --- PROPULSION (2) --- Light Treads Improved Treads (fused) > --- UTILITY (4) ------ Improved Heat Sink Large Storage Unit Self-contained Transmogrifier > --- WEAPON (3) ------- Light Assault Rifle Battle Rifle (fused) Minigun (fused) > --- INVENTORY (15) --- Heat Sink Heat Sink Core Shielding Light Assault Rifle Peak State ------------ > --- POWER ------------ Reinforced Ion Engine > --- PROPULSION ------- Light Treads Improved Treads > --- UTILITY ---------- Improved Heat Sink Large Storage Unit Self-contained Transmogrifier X0-1V1's Piety Tracker > --- WEAPON ----------- Light Assault Rifle Battle Rifle Minigun > --- INVENTORY -------- Heat Sink Core Shielding Light Assault Rifle [Rating: 37] Favorites ----------- Power Reinforced Ion Engine Engine Reinforced Ion Engine Propulsion Light Treads Treads Light Treads Utility Large Storage Unit Device Self-contained Transmogrifier Storage Large Storage Unit Processor Advanced Visual Processing Unit Protection Core Shielding Weapon Light Assault Rifle Energy Gun Medium Laser Ballistic Gun Light Assault Rifle Build | -11 -10 -9 ------- Run | Yrd Mat Mat Slots Evolved 2 | . . 2 Power . | . . . Propulsion . | . . . Utility 2 | . . 2 Weapon . | . . . Parts Attached 18 | 7 4 7 Power 2 | 1 1 . Engine 2 | 1 1 . Core . | . . . Reactor . | . . . Propulsion 3 | 2 . 1 Treads 3 | 2 . 1 Leg . | . . . Wheel . | . . . Hover . | . . . Flight . | . . . Utility 8 | 1 3 4 Device 4 | . 1 3 Storage 3 | 1 2 . Processor . | . . . Hackware . | . . . Protection 1 | . . 1 Artifact . | . . . Weapon 5 | 3 . 2 Energy Gun 1 | 1 . . Energy Cannon . | . . . Ballistic Gun 4 | 2 . 2 Ballistic Cannon . | . . . Launcher . | . . . Special Weapon . | . . . Impact Weapon . | . . . Slashing Weapon . | . . . Piercing Weapon . | . . . Special Melee Weapon . | . . . Unidentified Prototypes 1 | . . 1 Parts Lost 4 | . 1 3 Power 1 | . 1 . Propulsion 1 | . . 1 Utility 1 | . . 1 Weapon 1 | . . 1 Highest Loss Streak 1 | . 1 1 To Critical Strikes . | . . . Average Backups 4 | . 3 5 Power . | . . . Propulsion . | . . . Utility 2 | . 1 3 Weapon 1 | . 1 1 Tool/Special . | . . . Unused Backups 2 | . . 2 Power . | . . . Propulsion . | . . . Utility 1 | . . 1 Weapon 1 | . . 1 Tool/Special . | . . . Average Slot Usage (%) 94 | . 96 91 Engine 12 | . 13 10 Treads 24 | . 28 19 Device 14 | . 10 20 Storage 12 | . 14 10 Protection 1 | . . 2 Ballistic Gun 27 | . 28 27 Peak Build Rating 37 | 6 18 37 Average Rating 16 | 4 9 26 On Entrance 8 | . 6 18 Avg Prop Armor Cover (%) . | . . . Naked Turns . | . . . Heaviest Build 38 | 10 32 38 Greatest Support 43 | 40 40 43 Greatest Overweight (x) . | . . . Average Overweight (x) . | . . . Largest Inventory Capacity 15 | 8 15 15 Average Capacity 12 | 6 11 15 Most Carried 9 | . 9 9 Average Carried 4 | . 3 5 Final Capacity 15 | 8 15 15 Final Carried 9 | . 9 4 Transmogrified Parts 7 | . 1 6 Integrity Recovered 144 | . 36 108 Class Distribution -------------------- 71% | Mutant 14% | Skirmisher 10% | Tank 3% | Gunner Dominant Class ---------------- Mutant | -10/Materials Skirmisher | -9/Materials Resources | -11 -10 -9 ----------- Run | Yrd Mat Mat Matter Collected 591 | 246 191 154 Remotely . | . . . Salvage Created 894 | . 515 379 Parts 59 | . 29 30 Haulers Intercepted 2 | . 2 . Recyclers Shooed . | . . . Parts Field Recycled . | . . . Retrieved Matter . | . . . Parts Self-Destructed . | . . . Prevented . | . . . Parts Restored . | . . . Kills | -11 -10 -9 ------- Run | Yrd Mat Mat Combat Hostiles Destroyed 20 | . 7 13 Guns 20 | . 7 13 Classes Destroyed 6 | . 4 2 Hauler 2 | . 2 . Recycler 1 | . 1 . Watcher 1 | . 1 . Swarmer 7 | . . 7 Grunt 12 | . 7 5 Sentry 1 | . . 1 Best Kill Streak 9 | . 5 9 Combat Bots Only 9 | . 3 9 Max Kills in Single Turn 2 | . 1 2 Gunslinging 1 | . . 1 Exploded . | . . . Melee . | . . . Uniques/NPCs Destroyed . | . . . Combat | -11 -10 -9 -------- Run | Yrd Mat Mat Hostile Shots Fired 95 | . 50 45 Missed 24 | . 14 10 Hits 71 | . 36 35 Melee 2 | . . 2 Projectile 69 | . 36 33 Critical Strikes 1 | . . 1 Actively Blocked 1 | . . 1 Damage Taken 839 | . 445 394 Core 81 | . 35 46 Absorbed by Shields . | . . . Redirected to Shielding 8 | . . 8 Regen/Repaired (Parts) 138 | . . 138 Core Remaining (%) 82 | 100 65 . Volleys Fired 84 | 1 55 28 Largest 3 | 2 2 3 Hottest 70 | 40 40 70 Shots Fired 197 | 2 110 85 Gun 197 | 2 110 85 Cannon . | . . . Launcher . | . . . Special . | . . . Kinetic 197 | 2 110 85 Thermal . | . . . Explosive . | . . . Electromagnetic . | . . . Robot Hit Streak 19 | . 19 10 Robot Miss Streak 3 | . 3 3 Penetration Max . | . . . Secondary Targets 3 | . . 3 Max Gunslinging Chain 1 | . . 1 Shots Hit Robots 132 | . 81 51 Core Hits 49 | . 32 17 Critical Kills 1 | . . 1 Critical Parts Destroyed 1 | . 1 . Critical Strikes 2 | . 1 1 Destroy 2 | . 1 1 Melee Attacks . | . . . Impact . | . . . Slashing . | . . . Piercing . | . . . Sneak Attacks . | . . . Combat Hostiles . | . . . Follow-up Attacks . | . . . Damage Inflicted 1300 | . 665 635 Guns 1300 | . 665 635 Cannons . | . . . Explosions . | . . . Melee . | . . . Ramming . | . . . Kinetic 1300 | . 665 635 Thermal . | . . . Explosive . | . . . Electromagnetic . | . . . Impact . | . . . Slashing . | . . . Piercing . | . . . Highest Corruption 10 | . . 10 Average Corruption 5 | . . 5 Corruption Purged . | . . . Corruption Blocked . | . . . Effects 8 | . . 8 Message Errors 1 | . . 1 Matter Fused 3 | . . 3 Heat Flow Errors 2 | . . 2 Data Loss (minor) 1 | . . 1 Misfires 1 | . . 1 Overload Shots . | . . . Overflow Damage . | . . . Projectiles . | . . . Explosions . | . . . Melee . | . . . Knockbacks . | . . . Impact . | . . . Kinetic . | . . . Secondary . | . . . Self-Inflicted Damage . | . . . Shots . | . . . Rammed . | . . . Targets Rammed . | . . . Kicked . | . . . Crushed . | . . . Highest Temperature 215 | . 18 215 Average Temperature 52 | . 12 59 Received Heat Transfer 330 | . 252 78 Siege Activations . | . . . Martial Activations . | . . . Shielding Activations . | . . . Robots Disrupted . | . . . Combat Hostiles . | . . . Robots Corrupted . | . . . Combat Hostiles . | . . . Parts Fried . | . . . Impact Corruptions . | . . . Robots Melted . | . . . Combat Hostiles . | . . . Parts Melted . | . . . Heat Transferred . | . . . Parts Sabotaged . | . . . Parts Stolen . | . . . Parts Stripped . | . . . Power Chain Reactions . | . . . Alert | -11 -10 -9 ------- Run | Yrd Mat Mat Maximum Alert Level . | . . . Low Security (%) 100 | 100 100 100 Level 1 . | . . . Level 2 . | . . . Level 3 . | . . . Level 4 . | . . . Level 5 . | . . . High Security . | . . . Max Security . | . . . Peak Influence 184 | . 64 184 Initial . | . . . Average 17 | . 16 21 Influence Increases 516 | . 224 292 Destroy 0b10 Robot/C 400 | . 140 260 Destroy 0b10 Robot/NC 20 | . 20 . Destroy Leader 76 | . 46 30 Successful Hack 20 | . 18 2 Influence Decreases 350 | . 224 126 Time Decay 320 | . 214 106 Lost Part 30 | . 10 20 Squads Dispatched 3 | . 2 1 Investigation 1 | . 1 . Extermination . | . . . Reinforcement 2 | . 1 1 Assault . | . . . Garrison . | . . . Intercept . | . . . Searches Triggered . | . . . Construction Impeded . | . . . Haulers Reinforced . | . . . Active Scanning Responses . | . . . Cargo Convoy Interrupts . | . . . Stealth | -11 -10 -9 --------- Run | Yrd Mat Mat Distress Signals 3 | . 1 2 Communications Jammed . | . . . Distress Signals . | . . . Times Spotted 33 | . 12 21 Peak Tracking Total 8 | . 3 8 Tactical Retreats . | . . . Traps | -11 -10 -9 ------- Run | Yrd Mat Mat Traps Triggered 1 | . 1 . Indirectly . | . . . Trap Hack Attempts . | . . . Triggered . | . . . Disarmed . | . . . Reprogrammed . | . . . Reused . | . . . Traps Extracted . | . . . Installed . | . . . Triggered . | . . . Machines | -11 -10 -9 ---------- Run | Yrd Mat Mat Machines Disabled . | . . . Max in Single Turn . | . . . Machines Repaired . | . . . Machines Dismantled . | . . . Machines Sabotaged . | . . . Overloaded Fab Kills . | . . . Hacking | -11 -10 -9 --------- Run | Yrd Mat Mat Machines Accessed 7 | . 2 5 Terminals 5 | . 2 3 Fabricators . | . . . Repair Stations 1 | . . 1 Recycling Units . | . . . Scanalyzers 1 | . . 1 Garrison Access . | . . . Total Hacks 15 | . 2 13 Successful 7 | . 2 5 Failed 8 | . . 8 Catastrophic 1 | . . 1 Database Lockouts . | . . . Manual 11 | . 3 8 Terminals 10 | . 2 8 Fabricators . | . . . Repair Stations 4 | . . 4 Recycling Units . | . . . Scanalyzers 1 | . . 1 Garrison Access . | . . . Terminal Hacks . | . . . Fabricator Hacks . | . . . Repair Station Hacks 3 | . . 3 Scan Component 2 | . . 2 Repair 1 | . . 1 Recycling Unit Hacks . | . . . Scanalyzer 1 | . . 1 Retrieve Study 1 | . . 1 Garrison Access Hacks . | . . . Unauthorized Hacks 3 | . 2 1 Terminals 3 | . 2 1 Botnet 1 | . . 1 Skim 2 | . 2 . Fabricators . | . . . Repair Stations . | . . . Recycling Units . | . . . Scanalyzers . | . . . Garrison Access . | . . . Data Cores Recovered . | . . . Used . | . . . Hacking Detections 4 | . . 4 Full Trace Events . | . . . Feedback Events . | . . . Feedback Blocked . | . . . Robot Schematics Acquired . | . . . Robots Built . | . . . Authchips . | . . . Time . | . . . Total Robot Build Rating . | . . . Part Schematics Acquired . | . . . Parts Built . | . . . Authchips . | . . . Time . | . . . Total Part Build Rating . | . . . Part Studies Acquired 1 | . . 1 Parts Repaired 1 | . . 1 Time 26 | . . 26 Parts Recycled . | . . . Recycled Matter . | . . . Retrieved Matter . | . . . Retrieved Components . | . . . Parts Scanalyzed . | . . . Part Schematics Acquired . | . . . Parts Damaged . | . . . Bothacking | -11 -10 -9 ------------ Run | Yrd Mat Mat Used RIF Installer . | . . . Robots Hacked . | . . . Non-combat . | . . . Combat . | . . . Robot Hacks Applied . | . . . Relay Couplers Released . | . . . Fabnet Peak Effective % . | . . . Robots Rewired . | . . . Allies Hacked . | . . . Hacks Repelled . | . . . Allies | -11 -10 -9 -------- Run | Yrd Mat Mat Total Allies . | . . . Largest Group . | . . . Highest-Rated Group . | . . . Highest-Rated Ally . | . . . Total Orders . | . . . Ally Attacks . | . . . Total Damage . | . . . Kills . | . . . Allies Corrupted . | . . . Allies Melted . | . . . X0-1V1 Amusement Gains 24 | . 8 16 Average Entertainment 10 | . 13 10 Good Acts 3 | . . 3 Bad Acts 6 | . . 6 Intel | -11 -10 -9 ------- Run | Yrd Mat Mat Active Infowar (turns) 285 | . . 285 Optics 80 | . . 80 Structural 205 | . . 205 Robot Analysis Total . | . . . Derelict Logs Recovered . | . . . Drone Launches . | . . . Drone Recoveries . | . . . Exploration | -11 -10 -9 ------------- Run | Yrd Mat Mat Turns Passed 1434 | 92 759 583 Spaces Moved 574 | 52 273 249 Core 3 | 3 . . Treads 571 | 49 273 249 Legs . | . . . Wheels . | . . . Hover . | . . . Flight . | . . . Fastest Speed 50 | 50 160 160 Average Speed 159 | 153 160 160 Slowest Speed 160 | 160 160 160 Overloaded Moves . | . . . Propulsion Burnouts . | . . . Robots Hopped . | . . . Potential Cave-ins . | . . . Cave-ins Triggered . | . . . Exploration Rate (%) 22 | 4 36 26 Regions Visited 2 Branch Regions . Pre-discovered Areas . | . . . Known Exits Taken . | . . . Unknown Exits Taken 2 | 1 1 . Scrap Searched . | . . . Spaces Dug . | . . . Terrain Destroyed . | . . . Melee . | . . . Projectile . | . . . AOE . | . . . Terrain Rammed . | . . . Walls Destroyed . | . . . Machines Disabled . | . . . Actions | -11 -10 -9 --------- Run | Yrd Mat Mat Total 949 | 60 505 384 Wait 256 | . 159 97 Move 572 | 51 272 249 Hop . | . . . Pick Up 12 | . 11 1 Fast Attach 12 | 7 4 1 Attach 5 | . . 5 Detach . | . . . Swap 5 | . 2 3 Drop 3 | 1 2 . Fire 84 | 1 55 28 Melee . | . . . Ram . | . . . Kick . | . . . Crush . | . . . Escape Stasis . | . . . Rewire . | . . . Trap . | . . . Miscellaneous . | . . . Route ------- -11/Scrapyard -10/Materials (discovered 2 exits: *Mat / [*Sub]) -9/Materials (discovered 2 exits: [*Min] / [*Sto]) History --------- Turn | Location | Event 8 | -11/Scrapyard | Discovered new exit (range 16) 93 | -11/Scrapyard | Entered Materials 325 | -10/Materials | Build established: Mutant 451 | -10/Materials | Discovered new exit (range 16) 687 | -10/Materials | Discovered new exit (range 5) 763 | -10/Materials | Made a sacrifice at D.C.S.S. Altar Unit 763 | -10/Materials | Forcibly received Sfc. Transmogifier from X0-1V1 852 | -10/Materials | Entered another Materials area 852 | -9/Materials | Evolved 2 slots: Utility x2 886 | -9/Materials | Repaired Lgt. Treads 899 | -9/Materials | X0-1V1 announced a LAN party 947 | -9/Materials | Weapon slot count permanently improved by X0-1V1 (+1) 989 | -9/Materials | Discovered new exit (range 13) 1059 | -9/Materials | X0-1V1 sent hostile S-10 Pest (x3) 1082 | -9/Materials | X0-1V1 caused items to flee you 1154 | -9/Materials | X0-1V1 sent someone to clean up after you 1178 | -9/Materials | X0-1V1 activates XOMVISION 1285 | -9/Materials | Items stopped fleeing you 1337 | -9/Materials | Discovered new exit (range 13) 1428 | -9/Materials | System corruption reached 10% 1435 | -9/Materials | Destroyed 9 combat bots 1435 | -9/Materials | Self-destructed Last Messages --------------- reinforcements. 01398_ ALERT: Hostiles spotted, dispatching reinforcements to Terminal M002. 01398_ O-16 Technician locks terminal. 01399_ K-01 Serf collects debris. 01405_ S-10 Pest destroyed. 01406_ K-01 Serf collects debris. 01408_ S-10 Pest destroyed. 01409_ K-01 Serf collects debris. 01411_ LE #8TW BV7,#E7SSW8B0QH1PT6H 01411_ S-10 Pest destroyed. 01413_ K-01 Serf collects debris. 01414_ Sensor data returns to normal. 01414_ S-10 Pest destroyed. 01421_ K-01 Serf collects debris. 01427_ X0-1V1: "Fight!" 01427_ X0-1V1's Piety Tracker destroyed. 01427_ X0-1V1 is mildly amused. 01427_ System corrupted by crushing effect (+5). 01428_ K-01 Serf collects debris. Map ----- +----------------------------------------------------+ | ?????????????????????????????????????????????????? | | ?????????????????????????????????????????????????? | | ?????????????????????????????????????????????????? | | ?????????????????????????????????????????????????? | | ?????????????????????????????????????????????????? | | ?????????????????????????????????????????????????? | | ?????????????????????????????????????????????????? | | ?????????????????????## ?????????????????????????# | | ?????????????????????## ?????????????????????# | | ?????????????????????## |????????????????????# | | ????????????## ?????## <% "????????????????????# | | ????????????## # |????????????????????# | | ????????????## # ?????????????????????# | | ????????????## # ??????############### | | ?????????????? ## ################# | | ?????????????? ^ ########## ## | | ??????????????? t ## ] | | ????????????## "" ^ ^ ## | | ????????????## "" """ ## "T" | | ????????????## "T ! """ ##### ## | | ????????????## "" """ ###### ######### | | ???????????? # "" * ##?### ######### | | ??????????? / ==**= ##??## #### | | ???????????? # % = %=g%[ ##??## | | ???????????? # #######b#######??## #### | | ???????????? ##???#### =@*=[ ###??########+##### | | ????????????????????## *==k* ##??? # ?? | | ????????????????????## = ##?????????? ???? | | ????????????????????## "" ##????????? ??? | | ????????????????????## """"" ##????????? """"??? | | ????????????????????## """"" ##???????? """""?? | | ????????????????????## """"" ##???????? """""?? | | ????????????????????## """ ##???????! ? | | ????????????????????#############?????## ???? | | ????????????????????#######?#####????? #####?????? | | ?????????????????????????????????????? #####?????? | | ?????????????????????????????????????????????????? | | ?????????????????????????????????????????????????? | | ?????????????????????????????????????????????????? | | ?????????????????????????????????????????????????? | | ?????????????????????????????????????????????????? | | ?????????????????????????????????????????????????? | | ?????????????????????????????????????????????????? | | ?????????????????????????????????????????????????? | | ?????????????????????????????????????????????????? | | ?????????????????????????????????????????????????? | | ?????????????????????????????????????????????????? | | ?????????????????????????????????????????????????? | | ?????????????????????????????????????????????????? | | ?????????????????????????????????????????????????? | +----------------------------------------------------+ Best States ------------- Heat Dissipation 42 Energy Generation 12 Energy Capacity 1065 Matter Stores 300 Matter Capacity 300 Sight Range 20 Terrain Scan Density 10 Core Shielding 20 Evasion (%) 40 Recoil Reduction 2 Item Schematics ----------------- None Robot Schematics ------------------ None Fabricated ------------ Nothing Repaired ---------- Lgt. Treads | 1% | -9/Materials Studied --------- Lgt. Treads | -9/Materials | Hacked Alien Tech Used ----------------- None Achievements -------------- None Challenges ------------ None Game ------ Seed FieldSixReplicator Manual? 0 Play Time 00:09:56 Cumulative 222.9 hours Start 2026.08.25 @ 15:15:54 End 2026.08.25 @ 16:34:20 Sessions 3 Manual Loads 0 Difficulty Rogue Special Mode None Game No. 145 Rogue 145 Adventurer 0 Explorer 0 Win Type - Total 4 Types 2/0/0/1/0/0/0/1/0/0 Lore% 57 Gallery% 72 Achievement% 55 Wizard Run 0 Options --------- Layout 2 ASCII 0 Keyboard 0 Movement Mouse Keybinds 0 Fullscreen 1 Font 32/SmallcapsGlow Map View 50x44 Zoom Use 0% Tactical HUD 1 Map Filters NONE Filters NONE Steam 1 RUN: 407e191d-e175-4d9f-9f4b-798cb4d789d0